{"text_format":"3","workbook":"xlsx","n_sheets":4,"sheets":["Početak","PARAMETRI PROJEKTA","DETALJI O PROJEKTU","UKUPNE VREDNOSTI ZA PROJEKAT"],"not_rendered":{"charts":2,"defined_names":3,"pivot_tables":1},"read":"whole","date_system":"1900"}

{"sheet":"Početak","index":0,"n_rows":8,"n_cols":2,"rows_kept":8}
[null,"OSNOVNI PODACI O OVOM PREDLOŠKU"]
[]
[null,"Koristite ovu radnu svesku da biste pratili parametri projekta, detalji o projektu i ukupne vrednosti za projekat tokom planiranje projekta za advokatske firme."]
[null,"Unesite ime preduzeća na radnom listu sa parametri projekta i ono se automatski ažurira na drugim radnim listovima."]
[null,"Unesite informacije na radni list „Parametri projekta“ da biste ažurirali stubičaste grafikone, kao i na radni list „Detalji o projektu“. Izvedena tabela na radnom listu „Ukupne vrednosti projekta“ automatski se ažurira."]
[null,"Napomena:  "]
[null,"Dodatna uputstva navedena su u koloni A svakog radnog lista. Taj tekst je namerno skriven. Da biste uklonili tekst, izaberite kolonu A, a zatim izaberite stavku „IZBRIŠI“. Da biste otkrili tekst, izaberite kolonu A, a zatim promenite boju fonta."]
[null,"Da biste saznali više o tabelama na radnim listovima, pritisnite taster SHIFT, a zatim unutar tabele pritisnite taster F10, izaberite opciju „TABELA“, a zatim stavku „ALTERNATIVNI TEKST“. Za izvedenu tabelu na radnom listu „Ukupne vrednosti projekta“ pritisnite taster SHIFT, a zatim taster F10 unutar tabele, izaberite stavku OPCIJE IZVEDENE TABELE, a zatim izaberite karticu ALTERNATIVNI TEKST."]

{"sheet":"PARAMETRI PROJEKTA","index":1,"n_rows":19,"n_cols":9,"rows_kept":19}
["Napravite tabelu „Parametri projekta“ na ovom radnom listu. Unesite ime preduzeća u ćeliju sa desne strane. Korisna uputstva su u ćelijama u ovoj koloni.","Ime preduzeća"]
["Naslov ovog radnog lista nalazi se u ćeliji sa desne strane.","Planiranje projekta za advokatske firme"]
["Poruka o poverljivosti nalazi se u ćeliji sa desne strane.",{"$f":"B1&\" – poverljivo\"","v":"Ime preduzeća – poverljivo"}]
["Savet se nalazi u ćeliji sa desne strane.","Zasenčene ćelije se same izračunavaju. Ne morate ništa da unosite u njih."]
["Unesite detalje u tabelu „Parametri“ koja počinje od ćelije sa desne strane. Sledeće uputstvo se nalazi u ćeliji A12.","TIP PROJEKTA","GENERALNI PARTNER","ADVOKAT PREDUZEĆA","PARNIČAR ODBRANE","ADVOKAT ZA INTELEKTUALNU SVOJINU","STEČAJNI ADVOKAT","ADMINISTRATIVNO OSOBLJE","ZBIR"]
[null,"Pridruživanje preduzeća",{"v":0.1,"d":"10%"},{"v":0.4,"d":"40%"},{"v":0,"d":"0%"},{"v":0,"d":"0%"},{"v":0,"d":"0%"},{"v":0.5,"d":"50%"},{"$f":"SUM(Parametri[[#This Row],[GENERALNI PARTNER]:[ADMINISTRATIVNO OSOBLJE]])","v":{"v":1,"d":"100%"}}]
[null,"Akvizicija preduzeća",{"v":0.1,"d":"10%"},{"v":0.4,"d":"40%"},{"v":0,"d":"0%"},{"v":0.1,"d":"10%"},{"v":0,"d":"0%"},{"v":0.4,"d":"40%"},{"$f":"SUM(Parametri[[#This Row],[GENERALNI PARTNER]:[ADMINISTRATIVNO OSOBLJE]])","v":{"v":1,"d":"100%"}}]
[null,"Odbrana za odgovornost proizvođača",{"v":0.2,"d":"20%"},{"v":0,"d":"0%"},{"v":0.5,"d":"50%"},{"v":0,"d":"0%"},{"v":0,"d":"0%"},{"v":0.3,"d":"30%"},{"$f":"SUM(Parametri[[#This Row],[GENERALNI PARTNER]:[ADMINISTRATIVNO OSOBLJE]])","v":{"v":1,"d":"100%"}}]
[null,"Primena patenta",{"v":0.1,"d":"10%"},{"v":0,"d":"0%"},{"v":0,"d":"0%"},{"v":0.6,"d":"60%"},{"v":0,"d":"0%"},{"v":0.3,"d":"30%"},{"$f":"SUM(Parametri[[#This Row],[GENERALNI PARTNER]:[ADMINISTRATIVNO OSOBLJE]])","v":{"v":1,"d":"100%"}}]
[null,"Tužba zaposlenog",{"v":0.2,"d":"20%"},{"v":0.1,"d":"10%"},{"v":0.4,"d":"40%"},{"v":0,"d":"0%"},{"v":0,"d":"0%"},{"v":0.3,"d":"30%"},{"$f":"SUM(Parametri[[#This Row],[GENERALNI PARTNER]:[ADMINISTRATIVNO OSOBLJE]])","v":{"v":1,"d":"100%"}}]
[null,"Stečaj",{"v":0.1,"d":"10%"},{"v":0.2,"d":"20%"},{"v":0,"d":"0%"},{"v":0,"d":"0%"},{"v":0.4,"d":"40%"},{"v":0.3,"d":"30%"},{"$f":"SUM(Parametri[[#This Row],[GENERALNI PARTNER]:[ADMINISTRATIVNO OSOBLJE]])","v":{"v":1,"d":"100%"}}]
["Unesite kombinovane stope u ćelije sa desne strane, od C12 do H12. Sledeće uputstvo se nalazi u ćeliji A14.","Kombinovane stope",{"v":350,"d":"350 RSD"},{"v":250,"d":"250 RSD"},{"v":300,"d":"300 RSD"},{"v":275,"d":"275 RSD"},{"v":225,"d":"225 RSD"},{"v":125,"d":"125 RSD"}]
[]
["Stubičasti grafikon koji prikazuje poređenje između planirani i stvarni troškovi nalazi se u ćeliji sa desne strane, a stubičasti grafikon koji prikazuje poređenje između planirani i stvarni sati nalazi se u ćeliji F14."]
[null,null,"GENERALNI PARTNER","PREDUZEĆE","PARNIČAR ODBRANE","INTELEKTUALNA SVOJINA","STEČAJ","ADMINISTRATIVNO OSOBLJE"]
[null,"PLANIRANI TROŠKOVI",{"$f":"SUBTOTAL(109,Detalji[GENERALNI PARTNER])","v":{"v":78750,"d":"78,750.00 RSD"}},{"$f":"SUBTOTAL(109,Detalji[ADVOKAT PREDUZEĆA])","v":{"v":66250,"d":"66,250.00 RSD"}},{"$f":"SUBTOTAL(109,Detalji[PARNIČAR ODBRANE])","v":{"v":105000,"d":"105,000.00 RSD"}},{"$f":"SUBTOTAL(109,Detalji[ADVOKAT ZA INTELEKTUALNU SVOJINU])","v":{"v":35750,"d":"35,750.00 RSD"}},{"$f":"SUBTOTAL(109,Detalji[STEČAJNI ADVOKAT])","v":{"v":0,"d":"0.00 RSD"}},{"$f":"SUBTOTAL(109,Detalji[ADMINISTRATIVNO OSOBLJE])","v":{"v":66250,"d":"66,250.00 RSD"}}]
[null,"STVARNI TROŠKOVI",{"$f":"SUBTOTAL(109,Detalji[GENERALNI PARTNER 2])","v":{"v":79275,"d":"79,275.00 RSD"}},{"$f":"SUBTOTAL(109,Detalji[ADVOKAT PREDUZEĆA 2])","v":{"v":67375,"d":"67,375.00 RSD"}},{"$f":"SUBTOTAL(109,Detalji[PARNIČAR ODBRANE 2])","v":{"v":105600,"d":"105,600.00 RSD"}},{"$f":"SUBTOTAL(109,Detalji[ADVOKAT ZA INTELEKTUALNU SVOJINU 2])","v":{"v":34650,"d":"34,650.00 RSD"}},{"$f":"SUBTOTAL(109,Detalji[STEČAJNI ADVOKAT 2])","v":{"v":0,"d":"0.00 RSD"}},{"$f":"SUBTOTAL(109,Detalji[ADMINISTRATIVNO OSOBLJE 2])","v":{"v":67000,"d":"67,000.00 RSD"}}]
[null,"PLANIRANI SATI",{"$f":"C16/$C$12","v":{"v":225,"d":"225.00"}},{"$f":"D16/$C$12","v":{"v":189.28571428571428,"d":"189.29"}},{"v":300,"d":"300.00"},{"v":102.14285714285714,"d":"102.14"},{"v":0,"d":"0.00"},{"v":189.28571428571428,"d":"189.29"}]
[null,"STVARNI SATI",{"$f":"C17/$C$12","v":{"v":226.5,"d":"226.50"}},{"$f":"D17/$C$12","v":{"v":192.5,"d":"192.50"}},{"$f":"E17/$C$12","v":{"v":301.7142857142857,"d":"301.71"}},{"$f":"F17/$C$12","v":{"v":99,"d":"99.00"}},{"$f":"G17/$C$12","v":{"v":0,"d":"0.00"}},{"$f":"H17/$C$12","v":{"v":191.42857142857142,"d":"191.43"}}]

{"sheet":"DETALJI O PROJEKTU","index":2,"n_rows":10,"n_cols":25,"rows_kept":10,"merged":[[1,24,8,28]]}
["Napravite tabelu „Detalji o projektu“ na ovom radnom listu. Ime preduzeća se automatski ažurira u ćeliji sa desne strane. Korisna uputstva su u ćelijama u ovoj koloni. Pritisnite strelicu nadole da biste počeli.",{"$f":"'PARAMETRI PROJEKTA'!B1","v":"Ime preduzeća"}]
["Naslov ovog radnog lista nalazi se u ćeliji sa desne strane, a savet sa informacijama u ćeliji Y2.",{"$f":"'PARAMETRI PROJEKTA'!B2","v":"Planiranje projekta za advokatske firme"},{"$nulls":22},"INFORMACIJE:\nDa biste dodali red, izaberite ćeliju u krajnjem donjem desnom uglu u telu tabele (ne u redu sa ukupnim vrednostima) i pritisnite taster Tab ili pritisnite taster SHIFT, a zatim taster F10 unutar tabele na mestu gde želite da umetnete red i izaberite stavke „Umetni | Redovi tabele iznad/ispod“.\nObavezno izbrišite sve redove koji se ne koriste zato što izvedena tabela UKUPNE VREDNOSTI ZA PROJEKT koristi sve ćelije tabele i može da pruži pogrešne rezultate u suprotnom."]
["Poruka o poverljivosti nalazi se u ćeliji sa desne strane.",{"$f":"'PARAMETRI PROJEKTA'!B3","v":"Ime preduzeća – poverljivo"}]
["Unesite informacije u tabelu „Detalji“ koja počinje od ćelije sa desne strane. Tip projekata u tabeli „Detalji“ sa desne strane automatski se ažuriraju iz tabele „Parametri“ na radnom listu „Parametri projekta“.","IME PROJEKTA","TIP PROJEKTA","PROCENJENI POČETAK","PROCENJENI ZAVRŠETAK","STVARNO VREME POČETKA","STVARNO VREME ZAVRŠETKA","PROCENJENI RAD","STVARNI RAD","PROCENJENO TRAJANJE","STVARNO TRAJANJE","GENERALNI PARTNER","ADVOKAT PREDUZEĆA","PARNIČAR ODBRANE","ADVOKAT ZA INTELEKTUALNU SVOJINU","STEČAJNI ADVOKAT","ADMINISTRATIVNO OSOBLJE","GENERALNI PARTNER 2","ADVOKAT PREDUZEĆA 2","PARNIČAR ODBRANE 2","ADVOKAT ZA INTELEKTUALNU SVOJINU 2","STEČAJNI ADVOKAT 2","ADMINISTRATIVNO OSOBLJE 2"]
[null,"Projekat 1","Pridruživanje preduzeća",{"$f":"TODAY()","v":"2019-02-20"},{"$f":"TODAY()+60","v":"2019-04-21"},{"$f":"TODAY()+10","v":"2019-03-02"},{"$f":"TODAY()+65","v":"2019-04-26"},200,220,{"$f":"DAYS360(Detalji[[#This Row],[PROCENJENI POČETAK]],Detalji[[#This Row],[PROCENJENI ZAVRŠETAK]],FALSE)","v":61},{"$f":"DAYS360(Detalji[[#This Row],[STVARNO VREME POČETKA]],Detalji[[#This Row],[STVARNO VREME ZAVRŠETKA]],FALSE)","v":54},{"$f":"INDEX(Parametri[],MATCH(Detalji[[#This Row],[TIP PROJEKTA]],Parametri[TIP PROJEKTA],0),MATCH(Detalji[[#Headers],[GENERALNI PARTNER]],Parametri[#Headers],0))*INDEX('PARAMETRI PROJEKTA'!$B$12:$H$12,1,MATCH(Detalji[[#Headers],[GENERALNI PARTNER]],Parametri[#Headers],0))*Detalji[[#This Row],[PROCENJENI RAD]]","v":{"v":7000,"d":"7,000 RSD"}},{"$f":"INDEX(Parametri[],MATCH(Detalji[[#This Row],[TIP PROJEKTA]],Parametri[TIP PROJEKTA],0),MATCH(Detalji[[#Headers],[ADVOKAT PREDUZEĆA]],Parametri[#Headers],0))*INDEX('PARAMETRI PROJEKTA'!$B$12:$H$12,1,MATCH(Detalji[[#Headers],[ADVOKAT PREDUZEĆA]],Parametri[#Headers],0))*Detalji[[#This Row],[PROCENJENI RAD]]","v":{"v":20000,"d":"20,000 RSD"}},{"$f":"INDEX(Parametri[],MATCH(Detalji[[#This Row],[TIP PROJEKTA]],Parametri[TIP PROJEKTA],0),MATCH(Detalji[[#Headers],[PARNIČAR ODBRANE]],Parametri[#Headers],0))*INDEX('PARAMETRI PROJEKTA'!$B$12:$H$12,1,MATCH(Detalji[[#Headers],[PARNIČAR ODBRANE]],Parametri[#Headers],0))*Detalji[[#This Row],[PROCENJENI RAD]]","v":{"v":0,"d":"0 RSD"}},{"$f":"INDEX(Parametri[],MATCH(Detalji[[#This Row],[TIP PROJEKTA]],Parametri[TIP PROJEKTA],0),MATCH(Detalji[[#Headers],[ADVOKAT ZA INTELEKTUALNU SVOJINU]],Parametri[#Headers],0))*INDEX('PARAMETRI PROJEKTA'!$B$12:$H$12,1,MATCH(Detalji[[#Headers],[ADVOKAT ZA INTELEKTUALNU SVOJINU]],Parametri[#Headers],0))*Detalji[[#This Row],[PROCENJENI RAD]]","v":{"v":0,"d":"0 RSD"}},{"$f":"INDEX(Parametri[],MATCH(Detalji[[#This Row],[TIP PROJEKTA]],Parametri[TIP PROJEKTA],0),MATCH(Detalji[[#Headers],[STEČAJNI ADVOKAT]],Parametri[#Headers],0))*INDEX('PARAMETRI PROJEKTA'!$B$12:$H$12,1,MATCH(Detalji[[#Headers],[STEČAJNI ADVOKAT]],Parametri[#Headers],0))*Detalji[[#This Row],[PROCENJENI RAD]]","v":{"v":0,"d":"0 RSD"}},{"$f":"INDEX(Parametri[],MATCH(Detalji[[#This Row],[TIP PROJEKTA]],Parametri[TIP PROJEKTA],0),MATCH(Detalji[[#Headers],[ADMINISTRATIVNO OSOBLJE]],Parametri[#Headers],0))*INDEX('PARAMETRI PROJEKTA'!$B$12:$H$12,1,MATCH(Detalji[[#Headers],[ADMINISTRATIVNO OSOBLJE]],Parametri[#Headers],0))*Detalji[[#This Row],[PROCENJENI RAD]]","v":{"v":12500,"d":"12,500 RSD"}},{"$f":"INDEX(Parametri[],MATCH(Detalji[[#This Row],[TIP PROJEKTA]],Parametri[TIP PROJEKTA],0),MATCH(Detalji[[#Headers],[GENERALNI PARTNER]],Parametri[#Headers],0))*INDEX('PARAMETRI PROJEKTA'!$B$12:$H$12,1,MATCH(Detalji[[#Headers],[GENERALNI PARTNER]],Parametri[#Headers],0))*Detalji[[#This Row],[STVARNI RAD]]","v":{"v":7700,"d":"7,700 RSD"}},{"$f":"INDEX(Parametri[],MATCH(Detalji[[#This Row],[TIP PROJEKTA]],Parametri[TIP PROJEKTA],0),MATCH(Detalji[[#Headers],[ADVOKAT PREDUZEĆA]],Parametri[#Headers],0))*INDEX('PARAMETRI PROJEKTA'!$B$12:$H$12,1,MATCH(Detalji[[#Headers],[ADVOKAT PREDUZEĆA]],Parametri[#Headers],0))*Detalji[[#This Row],[STVARNI RAD]]","v":{"v":22000,"d":"22,000 RSD"}},{"$f":"INDEX(Parametri[],MATCH(Detalji[[#This Row],[TIP PROJEKTA]],Parametri[TIP PROJEKTA],0),MATCH(Detalji[[#Headers],[PARNIČAR ODBRANE]],Parametri[#Headers],0))*INDEX('PARAMETRI PROJEKTA'!$B$12:$H$12,1,MATCH(Detalji[[#Headers],[PARNIČAR ODBRANE]],Parametri[#Headers],0))*Detalji[[#This Row],[STVARNI RAD]]","v":{"v":0,"d":"0 RSD"}},{"$f":"INDEX(Parametri[],MATCH(Detalji[[#This Row],[TIP PROJEKTA]],Parametri[TIP PROJEKTA],0),MATCH(Detalji[[#Headers],[ADVOKAT ZA INTELEKTUALNU SVOJINU]],Parametri[#Headers],0))*INDEX('PARAMETRI PROJEKTA'!$B$12:$H$12,1,MATCH(Detalji[[#Headers],[ADVOKAT ZA INTELEKTUALNU SVOJINU]],Parametri[#Headers],0))*Detalji[[#This Row],[STVARNI RAD]]","v":{"v":0,"d":"0 RSD"}},{"$f":"INDEX(Parametri[],MATCH(Detalji[[#This Row],[TIP PROJEKTA]],Parametri[TIP PROJEKTA],0),MATCH(Detalji[[#Headers],[STEČAJNI ADVOKAT]],Parametri[#Headers],0))*INDEX('PARAMETRI PROJEKTA'!$B$12:$H$12,1,MATCH(Detalji[[#Headers],[STEČAJNI ADVOKAT]],Parametri[#Headers],0))*Detalji[[#This Row],[STVARNI RAD]]","v":{"v":0,"d":"0 RSD"}},{"$f":"INDEX(Parametri[],MATCH(Detalji[[#This Row],[TIP PROJEKTA]],Parametri[TIP PROJEKTA],0),MATCH(Detalji[[#Headers],[ADMINISTRATIVNO OSOBLJE]],Parametri[#Headers],0))*INDEX('PARAMETRI PROJEKTA'!$B$12:$H$12,1,MATCH(Detalji[[#Headers],[ADMINISTRATIVNO OSOBLJE]],Parametri[#Headers],0))*Detalji[[#This Row],[STVARNI RAD]]","v":{"v":13750,"d":"13,750 RSD"}}]
[null,"Projekat 2","Akvizicija preduzeća",{"$f":"TODAY()+30","v":"2019-03-22"},{"$f":"TODAY()+100","v":"2019-05-31"},{"$f":"TODAY()+40","v":"2019-04-01"},{"$f":"TODAY()+110","v":"2019-06-10"},400,390,{"$f":"DAYS360(Detalji[[#This Row],[PROCENJENI POČETAK]],Detalji[[#This Row],[PROCENJENI ZAVRŠETAK]],FALSE)","v":69},{"$f":"DAYS360(Detalji[[#This Row],[STVARNO VREME POČETKA]],Detalji[[#This Row],[STVARNO VREME ZAVRŠETKA]],FALSE)","v":69},{"$f":"INDEX(Parametri[],MATCH(Detalji[[#This Row],[TIP PROJEKTA]],Parametri[TIP PROJEKTA],0),MATCH(Detalji[[#Headers],[GENERALNI PARTNER]],Parametri[#Headers],0))*INDEX('PARAMETRI PROJEKTA'!$B$12:$H$12,1,MATCH(Detalji[[#Headers],[GENERALNI PARTNER]],Parametri[#Headers],0))*Detalji[[#This Row],[PROCENJENI RAD]]","v":{"v":14000,"d":"14,000 RSD"}},{"$f":"INDEX(Parametri[],MATCH(Detalji[[#This Row],[TIP PROJEKTA]],Parametri[TIP PROJEKTA],0),MATCH(Detalji[[#Headers],[ADVOKAT PREDUZEĆA]],Parametri[#Headers],0))*INDEX('PARAMETRI PROJEKTA'!$B$12:$H$12,1,MATCH(Detalji[[#Headers],[ADVOKAT PREDUZEĆA]],Parametri[#Headers],0))*Detalji[[#This Row],[PROCENJENI RAD]]","v":{"v":40000,"d":"40,000 RSD"}},{"$f":"INDEX(Parametri[],MATCH(Detalji[[#This Row],[TIP PROJEKTA]],Parametri[TIP PROJEKTA],0),MATCH(Detalji[[#Headers],[PARNIČAR ODBRANE]],Parametri[#Headers],0))*INDEX('PARAMETRI PROJEKTA'!$B$12:$H$12,1,MATCH(Detalji[[#Headers],[PARNIČAR ODBRANE]],Parametri[#Headers],0))*Detalji[[#This Row],[PROCENJENI RAD]]","v":{"v":0,"d":"0 RSD"}},{"$f":"INDEX(Parametri[],MATCH(Detalji[[#This Row],[TIP PROJEKTA]],Parametri[TIP PROJEKTA],0),MATCH(Detalji[[#Headers],[ADVOKAT ZA INTELEKTUALNU SVOJINU]],Parametri[#Headers],0))*INDEX('PARAMETRI PROJEKTA'!$B$12:$H$12,1,MATCH(Detalji[[#Headers],[ADVOKAT ZA INTELEKTUALNU SVOJINU]],Parametri[#Headers],0))*Detalji[[#This Row],[PROCENJENI RAD]]","v":{"v":11000,"d":"11,000 RSD"}},{"$f":"INDEX(Parametri[],MATCH(Detalji[[#This Row],[TIP PROJEKTA]],Parametri[TIP PROJEKTA],0),MATCH(Detalji[[#Headers],[STEČAJNI ADVOKAT]],Parametri[#Headers],0))*INDEX('PARAMETRI PROJEKTA'!$B$12:$H$12,1,MATCH(Detalji[[#Headers],[STEČAJNI ADVOKAT]],Parametri[#Headers],0))*Detalji[[#This Row],[PROCENJENI RAD]]","v":{"v":0,"d":"0 RSD"}},{"$f":"INDEX(Parametri[],MATCH(Detalji[[#This Row],[TIP PROJEKTA]],Parametri[TIP PROJEKTA],0),MATCH(Detalji[[#Headers],[ADMINISTRATIVNO OSOBLJE]],Parametri[#Headers],0))*INDEX('PARAMETRI PROJEKTA'!$B$12:$H$12,1,MATCH(Detalji[[#Headers],[ADMINISTRATIVNO OSOBLJE]],Parametri[#Headers],0))*Detalji[[#This Row],[PROCENJENI RAD]]","v":{"v":20000,"d":"20,000 RSD"}},{"$f":"INDEX(Parametri[],MATCH(Detalji[[#This Row],[TIP PROJEKTA]],Parametri[TIP PROJEKTA],0),MATCH(Detalji[[#Headers],[GENERALNI PARTNER]],Parametri[#Headers],0))*INDEX('PARAMETRI PROJEKTA'!$B$12:$H$12,1,MATCH(Detalji[[#Headers],[GENERALNI PARTNER]],Parametri[#Headers],0))*Detalji[[#This Row],[STVARNI RAD]]","v":{"v":13650,"d":"13,650 RSD"}},{"$f":"INDEX(Parametri[],MATCH(Detalji[[#This Row],[TIP PROJEKTA]],Parametri[TIP PROJEKTA],0),MATCH(Detalji[[#Headers],[ADVOKAT PREDUZEĆA]],Parametri[#Headers],0))*INDEX('PARAMETRI PROJEKTA'!$B$12:$H$12,1,MATCH(Detalji[[#Headers],[ADVOKAT PREDUZEĆA]],Parametri[#Headers],0))*Detalji[[#This Row],[STVARNI RAD]]","v":{"v":39000,"d":"39,000 RSD"}},{"$f":"INDEX(Parametri[],MATCH(Detalji[[#This Row],[TIP PROJEKTA]],Parametri[TIP PROJEKTA],0),MATCH(Detalji[[#Headers],[PARNIČAR ODBRANE]],Parametri[#Headers],0))*INDEX('PARAMETRI PROJEKTA'!$B$12:$H$12,1,MATCH(Detalji[[#Headers],[PARNIČAR ODBRANE]],Parametri[#Headers],0))*Detalji[[#This Row],[STVARNI RAD]]","v":{"v":0,"d":"0 RSD"}},{"$f":"INDEX(Parametri[],MATCH(Detalji[[#This Row],[TIP PROJEKTA]],Parametri[TIP PROJEKTA],0),MATCH(Detalji[[#Headers],[ADVOKAT ZA INTELEKTUALNU SVOJINU]],Parametri[#Headers],0))*INDEX('PARAMETRI PROJEKTA'!$B$12:$H$12,1,MATCH(Detalji[[#Headers],[ADVOKAT ZA INTELEKTUALNU SVOJINU]],Parametri[#Headers],0))*Detalji[[#This Row],[STVARNI RAD]]","v":{"v":10725,"d":"10,725 RSD"}},{"$f":"INDEX(Parametri[],MATCH(Detalji[[#This Row],[TIP PROJEKTA]],Parametri[TIP PROJEKTA],0),MATCH(Detalji[[#Headers],[STEČAJNI ADVOKAT]],Parametri[#Headers],0))*INDEX('PARAMETRI PROJEKTA'!$B$12:$H$12,1,MATCH(Detalji[[#Headers],[STEČAJNI ADVOKAT]],Parametri[#Headers],0))*Detalji[[#This Row],[STVARNI RAD]]","v":{"v":0,"d":"0 RSD"}},{"$f":"INDEX(Parametri[],MATCH(Detalji[[#This Row],[TIP PROJEKTA]],Parametri[TIP PROJEKTA],0),MATCH(Detalji[[#Headers],[ADMINISTRATIVNO OSOBLJE]],Parametri[#Headers],0))*INDEX('PARAMETRI PROJEKTA'!$B$12:$H$12,1,MATCH(Detalji[[#Headers],[ADMINISTRATIVNO OSOBLJE]],Parametri[#Headers],0))*Detalji[[#This Row],[STVARNI RAD]]","v":{"v":19500,"d":"19,500 RSD"}}]
[null,"Projekat 3","Odbrana za odgovornost proizvođača",{"$f":"TODAY()+150","v":"2019-07-20"},{"$f":"TODAY()+150","v":"2019-07-20"},{"$f":"TODAY()+150","v":"2019-07-20"},{"$f":"TODAY()+170","v":"2019-08-09"},500,500,{"$f":"DAYS360(Detalji[[#This Row],[PROCENJENI POČETAK]],Detalji[[#This Row],[PROCENJENI ZAVRŠETAK]],FALSE)","v":0},{"$f":"DAYS360(Detalji[[#This Row],[STVARNO VREME POČETKA]],Detalji[[#This Row],[STVARNO VREME ZAVRŠETKA]],FALSE)","v":19},{"$f":"INDEX(Parametri[],MATCH(Detalji[[#This Row],[TIP PROJEKTA]],Parametri[TIP PROJEKTA],0),MATCH(Detalji[[#Headers],[GENERALNI PARTNER]],Parametri[#Headers],0))*INDEX('PARAMETRI PROJEKTA'!$B$12:$H$12,1,MATCH(Detalji[[#Headers],[GENERALNI PARTNER]],Parametri[#Headers],0))*Detalji[[#This Row],[PROCENJENI RAD]]","v":{"v":35000,"d":"35,000 RSD"}},{"$f":"INDEX(Parametri[],MATCH(Detalji[[#This Row],[TIP PROJEKTA]],Parametri[TIP PROJEKTA],0),MATCH(Detalji[[#Headers],[ADVOKAT PREDUZEĆA]],Parametri[#Headers],0))*INDEX('PARAMETRI PROJEKTA'!$B$12:$H$12,1,MATCH(Detalji[[#Headers],[ADVOKAT PREDUZEĆA]],Parametri[#Headers],0))*Detalji[[#This Row],[PROCENJENI RAD]]","v":{"v":0,"d":"0 RSD"}},{"$f":"INDEX(Parametri[],MATCH(Detalji[[#This Row],[TIP PROJEKTA]],Parametri[TIP PROJEKTA],0),MATCH(Detalji[[#Headers],[PARNIČAR ODBRANE]],Parametri[#Headers],0))*INDEX('PARAMETRI PROJEKTA'!$B$12:$H$12,1,MATCH(Detalji[[#Headers],[PARNIČAR ODBRANE]],Parametri[#Headers],0))*Detalji[[#This Row],[PROCENJENI RAD]]","v":{"v":75000,"d":"75,000 RSD"}},{"$f":"INDEX(Parametri[],MATCH(Detalji[[#This Row],[TIP PROJEKTA]],Parametri[TIP PROJEKTA],0),MATCH(Detalji[[#Headers],[ADVOKAT ZA INTELEKTUALNU SVOJINU]],Parametri[#Headers],0))*INDEX('PARAMETRI PROJEKTA'!$B$12:$H$12,1,MATCH(Detalji[[#Headers],[ADVOKAT ZA INTELEKTUALNU SVOJINU]],Parametri[#Headers],0))*Detalji[[#This Row],[PROCENJENI RAD]]","v":{"v":0,"d":"0 RSD"}},{"$f":"INDEX(Parametri[],MATCH(Detalji[[#This Row],[TIP PROJEKTA]],Parametri[TIP PROJEKTA],0),MATCH(Detalji[[#Headers],[STEČAJNI ADVOKAT]],Parametri[#Headers],0))*INDEX('PARAMETRI PROJEKTA'!$B$12:$H$12,1,MATCH(Detalji[[#Headers],[STEČAJNI ADVOKAT]],Parametri[#Headers],0))*Detalji[[#This Row],[PROCENJENI RAD]]","v":{"v":0,"d":"0 RSD"}},{"$f":"INDEX(Parametri[],MATCH(Detalji[[#This Row],[TIP PROJEKTA]],Parametri[TIP PROJEKTA],0),MATCH(Detalji[[#Headers],[ADMINISTRATIVNO OSOBLJE]],Parametri[#Headers],0))*INDEX('PARAMETRI PROJEKTA'!$B$12:$H$12,1,MATCH(Detalji[[#Headers],[ADMINISTRATIVNO OSOBLJE]],Parametri[#Headers],0))*Detalji[[#This Row],[PROCENJENI RAD]]","v":{"v":18750,"d":"18,750 RSD"}},{"$f":"INDEX(Parametri[],MATCH(Detalji[[#This Row],[TIP PROJEKTA]],Parametri[TIP PROJEKTA],0),MATCH(Detalji[[#Headers],[GENERALNI PARTNER]],Parametri[#Headers],0))*INDEX('PARAMETRI PROJEKTA'!$B$12:$H$12,1,MATCH(Detalji[[#Headers],[GENERALNI PARTNER]],Parametri[#Headers],0))*Detalji[[#This Row],[STVARNI RAD]]","v":{"v":35000,"d":"35,000 RSD"}},{"$f":"INDEX(Parametri[],MATCH(Detalji[[#This Row],[TIP PROJEKTA]],Parametri[TIP PROJEKTA],0),MATCH(Detalji[[#Headers],[ADVOKAT PREDUZEĆA]],Parametri[#Headers],0))*INDEX('PARAMETRI PROJEKTA'!$B$12:$H$12,1,MATCH(Detalji[[#Headers],[ADVOKAT PREDUZEĆA]],Parametri[#Headers],0))*Detalji[[#This Row],[STVARNI RAD]]","v":{"v":0,"d":"0 RSD"}},{"$f":"INDEX(Parametri[],MATCH(Detalji[[#This Row],[TIP PROJEKTA]],Parametri[TIP PROJEKTA],0),MATCH(Detalji[[#Headers],[PARNIČAR ODBRANE]],Parametri[#Headers],0))*INDEX('PARAMETRI PROJEKTA'!$B$12:$H$12,1,MATCH(Detalji[[#Headers],[PARNIČAR ODBRANE]],Parametri[#Headers],0))*Detalji[[#This Row],[STVARNI RAD]]","v":{"v":75000,"d":"75,000 RSD"}},{"$f":"INDEX(Parametri[],MATCH(Detalji[[#This Row],[TIP PROJEKTA]],Parametri[TIP PROJEKTA],0),MATCH(Detalji[[#Headers],[ADVOKAT ZA INTELEKTUALNU SVOJINU]],Parametri[#Headers],0))*INDEX('PARAMETRI PROJEKTA'!$B$12:$H$12,1,MATCH(Detalji[[#Headers],[ADVOKAT ZA INTELEKTUALNU SVOJINU]],Parametri[#Headers],0))*Detalji[[#This Row],[STVARNI RAD]]","v":{"v":0,"d":"0 RSD"}},{"$f":"INDEX(Parametri[],MATCH(Detalji[[#This Row],[TIP PROJEKTA]],Parametri[TIP PROJEKTA],0),MATCH(Detalji[[#Headers],[STEČAJNI ADVOKAT]],Parametri[#Headers],0))*INDEX('PARAMETRI PROJEKTA'!$B$12:$H$12,1,MATCH(Detalji[[#Headers],[STEČAJNI ADVOKAT]],Parametri[#Headers],0))*Detalji[[#This Row],[STVARNI RAD]]","v":{"v":0,"d":"0 RSD"}},{"$f":"INDEX(Parametri[],MATCH(Detalji[[#This Row],[TIP PROJEKTA]],Parametri[TIP PROJEKTA],0),MATCH(Detalji[[#Headers],[ADMINISTRATIVNO OSOBLJE]],Parametri[#Headers],0))*INDEX('PARAMETRI PROJEKTA'!$B$12:$H$12,1,MATCH(Detalji[[#Headers],[ADMINISTRATIVNO OSOBLJE]],Parametri[#Headers],0))*Detalji[[#This Row],[STVARNI RAD]]","v":{"v":18750,"d":"18,750 RSD"}}]
[null,"Projekat 4","Primena patenta",{"$f":"TODAY()+200","v":"2019-09-08"},{"$f":"TODAY()+230","v":"2019-10-08"},{"$f":"TODAY()+230","v":"2019-10-08"},{"$f":"TODAY()+230","v":"2019-10-08"},150,145,{"$f":"DAYS360(Detalji[[#This Row],[PROCENJENI POČETAK]],Detalji[[#This Row],[PROCENJENI ZAVRŠETAK]],FALSE)","v":30},{"$f":"DAYS360(Detalji[[#This Row],[STVARNO VREME POČETKA]],Detalji[[#This Row],[STVARNO VREME ZAVRŠETKA]],FALSE)","v":0},{"$f":"INDEX(Parametri[],MATCH(Detalji[[#This Row],[TIP PROJEKTA]],Parametri[TIP PROJEKTA],0),MATCH(Detalji[[#Headers],[GENERALNI PARTNER]],Parametri[#Headers],0))*INDEX('PARAMETRI PROJEKTA'!$B$12:$H$12,1,MATCH(Detalji[[#Headers],[GENERALNI PARTNER]],Parametri[#Headers],0))*Detalji[[#This Row],[PROCENJENI RAD]]","v":{"v":5250,"d":"5,250 RSD"}},{"$f":"INDEX(Parametri[],MATCH(Detalji[[#This Row],[TIP PROJEKTA]],Parametri[TIP PROJEKTA],0),MATCH(Detalji[[#Headers],[ADVOKAT PREDUZEĆA]],Parametri[#Headers],0))*INDEX('PARAMETRI PROJEKTA'!$B$12:$H$12,1,MATCH(Detalji[[#Headers],[ADVOKAT PREDUZEĆA]],Parametri[#Headers],0))*Detalji[[#This Row],[PROCENJENI RAD]]","v":{"v":0,"d":"0 RSD"}},{"$f":"INDEX(Parametri[],MATCH(Detalji[[#This Row],[TIP PROJEKTA]],Parametri[TIP PROJEKTA],0),MATCH(Detalji[[#Headers],[PARNIČAR ODBRANE]],Parametri[#Headers],0))*INDEX('PARAMETRI PROJEKTA'!$B$12:$H$12,1,MATCH(Detalji[[#Headers],[PARNIČAR ODBRANE]],Parametri[#Headers],0))*Detalji[[#This Row],[PROCENJENI RAD]]","v":{"v":0,"d":"0 RSD"}},{"$f":"INDEX(Parametri[],MATCH(Detalji[[#This Row],[TIP PROJEKTA]],Parametri[TIP PROJEKTA],0),MATCH(Detalji[[#Headers],[ADVOKAT ZA INTELEKTUALNU SVOJINU]],Parametri[#Headers],0))*INDEX('PARAMETRI PROJEKTA'!$B$12:$H$12,1,MATCH(Detalji[[#Headers],[ADVOKAT ZA INTELEKTUALNU SVOJINU]],Parametri[#Headers],0))*Detalji[[#This Row],[PROCENJENI RAD]]","v":{"v":24750,"d":"24,750 RSD"}},{"$f":"INDEX(Parametri[],MATCH(Detalji[[#This Row],[TIP PROJEKTA]],Parametri[TIP PROJEKTA],0),MATCH(Detalji[[#Headers],[STEČAJNI ADVOKAT]],Parametri[#Headers],0))*INDEX('PARAMETRI PROJEKTA'!$B$12:$H$12,1,MATCH(Detalji[[#Headers],[STEČAJNI ADVOKAT]],Parametri[#Headers],0))*Detalji[[#This Row],[PROCENJENI RAD]]","v":{"v":0,"d":"0 RSD"}},{"$f":"INDEX(Parametri[],MATCH(Detalji[[#This Row],[TIP PROJEKTA]],Parametri[TIP PROJEKTA],0),MATCH(Detalji[[#Headers],[ADMINISTRATIVNO OSOBLJE]],Parametri[#Headers],0))*INDEX('PARAMETRI PROJEKTA'!$B$12:$H$12,1,MATCH(Detalji[[#Headers],[ADMINISTRATIVNO OSOBLJE]],Parametri[#Headers],0))*Detalji[[#This Row],[PROCENJENI RAD]]","v":{"v":5625,"d":"5,625 RSD"}},{"$f":"INDEX(Parametri[],MATCH(Detalji[[#This Row],[TIP PROJEKTA]],Parametri[TIP PROJEKTA],0),MATCH(Detalji[[#Headers],[GENERALNI PARTNER]],Parametri[#Headers],0))*INDEX('PARAMETRI PROJEKTA'!$B$12:$H$12,1,MATCH(Detalji[[#Headers],[GENERALNI PARTNER]],Parametri[#Headers],0))*Detalji[[#This Row],[STVARNI RAD]]","v":{"v":5075,"d":"5,075 RSD"}},{"$f":"INDEX(Parametri[],MATCH(Detalji[[#This Row],[TIP PROJEKTA]],Parametri[TIP PROJEKTA],0),MATCH(Detalji[[#Headers],[ADVOKAT PREDUZEĆA]],Parametri[#Headers],0))*INDEX('PARAMETRI PROJEKTA'!$B$12:$H$12,1,MATCH(Detalji[[#Headers],[ADVOKAT PREDUZEĆA]],Parametri[#Headers],0))*Detalji[[#This Row],[STVARNI RAD]]","v":{"v":0,"d":"0 RSD"}},{"$f":"INDEX(Parametri[],MATCH(Detalji[[#This Row],[TIP PROJEKTA]],Parametri[TIP PROJEKTA],0),MATCH(Detalji[[#Headers],[PARNIČAR ODBRANE]],Parametri[#Headers],0))*INDEX('PARAMETRI PROJEKTA'!$B$12:$H$12,1,MATCH(Detalji[[#Headers],[PARNIČAR ODBRANE]],Parametri[#Headers],0))*Detalji[[#This Row],[STVARNI RAD]]","v":{"v":0,"d":"0 RSD"}},{"$f":"INDEX(Parametri[],MATCH(Detalji[[#This Row],[TIP PROJEKTA]],Parametri[TIP PROJEKTA],0),MATCH(Detalji[[#Headers],[ADVOKAT ZA INTELEKTUALNU SVOJINU]],Parametri[#Headers],0))*INDEX('PARAMETRI PROJEKTA'!$B$12:$H$12,1,MATCH(Detalji[[#Headers],[ADVOKAT ZA INTELEKTUALNU SVOJINU]],Parametri[#Headers],0))*Detalji[[#This Row],[STVARNI RAD]]","v":{"v":23925,"d":"23,925 RSD"}},{"$f":"INDEX(Parametri[],MATCH(Detalji[[#This Row],[TIP PROJEKTA]],Parametri[TIP PROJEKTA],0),MATCH(Detalji[[#Headers],[STEČAJNI ADVOKAT]],Parametri[#Headers],0))*INDEX('PARAMETRI PROJEKTA'!$B$12:$H$12,1,MATCH(Detalji[[#Headers],[STEČAJNI ADVOKAT]],Parametri[#Headers],0))*Detalji[[#This Row],[STVARNI RAD]]","v":{"v":0,"d":"0 RSD"}},{"$f":"INDEX(Parametri[],MATCH(Detalji[[#This Row],[TIP PROJEKTA]],Parametri[TIP PROJEKTA],0),MATCH(Detalji[[#Headers],[ADMINISTRATIVNO OSOBLJE]],Parametri[#Headers],0))*INDEX('PARAMETRI PROJEKTA'!$B$12:$H$12,1,MATCH(Detalji[[#Headers],[ADMINISTRATIVNO OSOBLJE]],Parametri[#Headers],0))*Detalji[[#This Row],[STVARNI RAD]]","v":{"v":5437.5,"d":"5,438 RSD"}}]
[null,"Projekat 5","Tužba zaposlenog",{"$f":"TODAY()+220","v":"2019-09-28"},{"$f":"TODAY()+250","v":"2019-10-28"},{"$f":"TODAY()+230","v":"2019-10-08"},{"$f":"TODAY()+259","v":"2019-11-06"},250,255,{"$f":"DAYS360(Detalji[[#This Row],[PROCENJENI POČETAK]],Detalji[[#This Row],[PROCENJENI ZAVRŠETAK]],FALSE)","v":30},{"$f":"DAYS360(Detalji[[#This Row],[STVARNO VREME POČETKA]],Detalji[[#This Row],[STVARNO VREME ZAVRŠETKA]],FALSE)","v":28},{"$f":"INDEX(Parametri[],MATCH(Detalji[[#This Row],[TIP PROJEKTA]],Parametri[TIP PROJEKTA],0),MATCH(Detalji[[#Headers],[GENERALNI PARTNER]],Parametri[#Headers],0))*INDEX('PARAMETRI PROJEKTA'!$B$12:$H$12,1,MATCH(Detalji[[#Headers],[GENERALNI PARTNER]],Parametri[#Headers],0))*Detalji[[#This Row],[PROCENJENI RAD]]","v":{"v":17500,"d":"17,500 RSD"}},{"$f":"INDEX(Parametri[],MATCH(Detalji[[#This Row],[TIP PROJEKTA]],Parametri[TIP PROJEKTA],0),MATCH(Detalji[[#Headers],[ADVOKAT PREDUZEĆA]],Parametri[#Headers],0))*INDEX('PARAMETRI PROJEKTA'!$B$12:$H$12,1,MATCH(Detalji[[#Headers],[ADVOKAT PREDUZEĆA]],Parametri[#Headers],0))*Detalji[[#This Row],[PROCENJENI RAD]]","v":{"v":6250,"d":"6,250 RSD"}},{"$f":"INDEX(Parametri[],MATCH(Detalji[[#This Row],[TIP PROJEKTA]],Parametri[TIP PROJEKTA],0),MATCH(Detalji[[#Headers],[PARNIČAR ODBRANE]],Parametri[#Headers],0))*INDEX('PARAMETRI PROJEKTA'!$B$12:$H$12,1,MATCH(Detalji[[#Headers],[PARNIČAR ODBRANE]],Parametri[#Headers],0))*Detalji[[#This Row],[PROCENJENI RAD]]","v":{"v":30000,"d":"30,000 RSD"}},{"$f":"INDEX(Parametri[],MATCH(Detalji[[#This Row],[TIP PROJEKTA]],Parametri[TIP PROJEKTA],0),MATCH(Detalji[[#Headers],[ADVOKAT ZA INTELEKTUALNU SVOJINU]],Parametri[#Headers],0))*INDEX('PARAMETRI PROJEKTA'!$B$12:$H$12,1,MATCH(Detalji[[#Headers],[ADVOKAT ZA INTELEKTUALNU SVOJINU]],Parametri[#Headers],0))*Detalji[[#This Row],[PROCENJENI RAD]]","v":{"v":0,"d":"0 RSD"}},{"$f":"INDEX(Parametri[],MATCH(Detalji[[#This Row],[TIP PROJEKTA]],Parametri[TIP PROJEKTA],0),MATCH(Detalji[[#Headers],[STEČAJNI ADVOKAT]],Parametri[#Headers],0))*INDEX('PARAMETRI PROJEKTA'!$B$12:$H$12,1,MATCH(Detalji[[#Headers],[STEČAJNI ADVOKAT]],Parametri[#Headers],0))*Detalji[[#This Row],[PROCENJENI RAD]]","v":{"v":0,"d":"0 RSD"}},{"$f":"INDEX(Parametri[],MATCH(Detalji[[#This Row],[TIP PROJEKTA]],Parametri[TIP PROJEKTA],0),MATCH(Detalji[[#Headers],[ADMINISTRATIVNO OSOBLJE]],Parametri[#Headers],0))*INDEX('PARAMETRI PROJEKTA'!$B$12:$H$12,1,MATCH(Detalji[[#Headers],[ADMINISTRATIVNO OSOBLJE]],Parametri[#Headers],0))*Detalji[[#This Row],[PROCENJENI RAD]]","v":{"v":9375,"d":"9,375 RSD"}},{"$f":"INDEX(Parametri[],MATCH(Detalji[[#This Row],[TIP PROJEKTA]],Parametri[TIP PROJEKTA],0),MATCH(Detalji[[#Headers],[GENERALNI PARTNER]],Parametri[#Headers],0))*INDEX('PARAMETRI PROJEKTA'!$B$12:$H$12,1,MATCH(Detalji[[#Headers],[GENERALNI PARTNER]],Parametri[#Headers],0))*Detalji[[#This Row],[STVARNI RAD]]","v":{"v":17850,"d":"17,850 RSD"}},{"$f":"INDEX(Parametri[],MATCH(Detalji[[#This Row],[TIP PROJEKTA]],Parametri[TIP PROJEKTA],0),MATCH(Detalji[[#Headers],[ADVOKAT PREDUZEĆA]],Parametri[#Headers],0))*INDEX('PARAMETRI PROJEKTA'!$B$12:$H$12,1,MATCH(Detalji[[#Headers],[ADVOKAT PREDUZEĆA]],Parametri[#Headers],0))*Detalji[[#This Row],[STVARNI RAD]]","v":{"v":6375,"d":"6,375 RSD"}},{"$f":"INDEX(Parametri[],MATCH(Detalji[[#This Row],[TIP PROJEKTA]],Parametri[TIP PROJEKTA],0),MATCH(Detalji[[#Headers],[PARNIČAR ODBRANE]],Parametri[#Headers],0))*INDEX('PARAMETRI PROJEKTA'!$B$12:$H$12,1,MATCH(Detalji[[#Headers],[PARNIČAR ODBRANE]],Parametri[#Headers],0))*Detalji[[#This Row],[STVARNI RAD]]","v":{"v":30600,"d":"30,600 RSD"}},{"$f":"INDEX(Parametri[],MATCH(Detalji[[#This Row],[TIP PROJEKTA]],Parametri[TIP PROJEKTA],0),MATCH(Detalji[[#Headers],[ADVOKAT ZA INTELEKTUALNU SVOJINU]],Parametri[#Headers],0))*INDEX('PARAMETRI PROJEKTA'!$B$12:$H$12,1,MATCH(Detalji[[#Headers],[ADVOKAT ZA INTELEKTUALNU SVOJINU]],Parametri[#Headers],0))*Detalji[[#This Row],[STVARNI RAD]]","v":{"v":0,"d":"0 RSD"}},{"$f":"INDEX(Parametri[],MATCH(Detalji[[#This Row],[TIP PROJEKTA]],Parametri[TIP PROJEKTA],0),MATCH(Detalji[[#Headers],[STEČAJNI ADVOKAT]],Parametri[#Headers],0))*INDEX('PARAMETRI PROJEKTA'!$B$12:$H$12,1,MATCH(Detalji[[#Headers],[STEČAJNI ADVOKAT]],Parametri[#Headers],0))*Detalji[[#This Row],[STVARNI RAD]]","v":{"v":0,"d":"0 RSD"}},{"$f":"INDEX(Parametri[],MATCH(Detalji[[#This Row],[TIP PROJEKTA]],Parametri[TIP PROJEKTA],0),MATCH(Detalji[[#Headers],[ADMINISTRATIVNO OSOBLJE]],Parametri[#Headers],0))*INDEX('PARAMETRI PROJEKTA'!$B$12:$H$12,1,MATCH(Detalji[[#Headers],[ADMINISTRATIVNO OSOBLJE]],Parametri[#Headers],0))*Detalji[[#This Row],[STVARNI RAD]]","v":{"v":9562.5,"d":"9,563 RSD"}}]
[null,"ZBIR",{"$nulls":5},{"$f":"SUBTOTAL(109,Detalji[PROCENJENI RAD])","v":1500},{"$f":"SUBTOTAL(109,Detalji[STVARNI RAD])","v":1510},{"$f":"SUBTOTAL(109,Detalji[PROCENJENO TRAJANJE])","v":190},{"$f":"SUBTOTAL(109,Detalji[STVARNO TRAJANJE])","v":170}]

{"sheet":"UKUPNE VREDNOSTI ZA PROJEKAT","index":3,"n_rows":11,"n_cols":16,"rows_kept":11,"merged":[[3,2,3,7],[3,8,3,13],[3,15,14,19]]}
["Na ovom radnom listu ćete dobiti ukupne vrednosti za projekt. Ime preduzeća automatski se ažurira u ćeliji sa desne strane. Korisna uputstva su u ćelijama u ovoj koloni. Pritisnite strelicu nadole da biste počeli.",{"$f":"'PARAMETRI PROJEKTA'!B1","v":"Ime preduzeća"}]
["Naslov ovog radnog lista nalazi se u ćeliji sa desne strane.",{"$f":"'PARAMETRI PROJEKTA'!B2","v":"Planiranje projekta za advokatske firme"}]
["Poruka o poverljivosti nalazi se u ćeliji sa desne strane.",{"$f":"'PARAMETRI PROJEKTA'!B3","v":"Ime preduzeća – poverljivo"}]
["Oznaka „Procenjeno“ nalazi se ćeliji C4, oznaka „Stvarno“ u ćeliji I4, a savet sa informacijama u ćeliji P4.",null,"PROCENJENO",{"$nulls":5},"STVARNO",{"$nulls":6},"INFORMACIJE: \nOva izvedena tabela se ne osvežava automatski.  Da biste je osvežili, izaberite je (bilo koju ćeliju izvedene tabele) i na kartici trake ALATKE IZVEDENE TABELE | ANALIZA izaberite stavku „Osveži“.  Možete i da pritisnete tastere SHIFT + F10 da biste izabrali izvedenu tabelu i izaberite stavku „Osveži“."]
["Izvedena tabela koja počinje u ćeliji sa desne strane automatski se ažurira","IME PROJEKTA","GENERALNI PARTNER ","PREDUZEĆE ","PARNIČAR ODBRANE ","INTELEKTUALNA SVOJINA ","STEČAJ ","ADMINISTRATIVNO OSOBLJE ","GENERALNI PARTNER  ","PREDUZEĆE","PARNIČAR ODBRANE  ","STEČAJ","INTELEKTUALNA SVOJINA","ADMINISTRATIVNO OSOBLJE  "]
[null,"Projekat 1",{"v":7000,"d":"7,000.00 RSD"},{"v":20000,"d":"20,000.00 RSD"},{"v":0,"d":"0.00 RSD"},{"v":0,"d":"0.00 RSD"},{"v":0,"d":"0.00 RSD"},{"v":12500,"d":"12,500.00 RSD"},{"v":7700,"d":"7,700.00 RSD"},{"v":22000,"d":"22,000.00 RSD"},{"v":0,"d":"0.00 RSD"},{"v":0,"d":"0.00 RSD"},{"v":0,"d":"0.00 RSD"},{"v":13750,"d":"13,750.00 RSD"}]
[null,"Projekat 2",{"v":14000,"d":"14,000.00 RSD"},{"v":40000,"d":"40,000.00 RSD"},{"v":0,"d":"0.00 RSD"},{"v":11000,"d":"11,000.00 RSD"},{"v":0,"d":"0.00 RSD"},{"v":20000,"d":"20,000.00 RSD"},{"v":13650,"d":"13,650.00 RSD"},{"v":39000,"d":"39,000.00 RSD"},{"v":0,"d":"0.00 RSD"},{"v":10725,"d":"10,725.00 RSD"},{"v":0,"d":"0.00 RSD"},{"v":19500,"d":"19,500.00 RSD"}]
[null,"Projekat 3",{"v":35000,"d":"35,000.00 RSD"},{"v":0,"d":"0.00 RSD"},{"v":75000,"d":"75,000.00 RSD"},{"v":0,"d":"0.00 RSD"},{"v":0,"d":"0.00 RSD"},{"v":18750,"d":"18,750.00 RSD"},{"v":35000,"d":"35,000.00 RSD"},{"v":0,"d":"0.00 RSD"},{"v":75000,"d":"75,000.00 RSD"},{"v":0,"d":"0.00 RSD"},{"v":0,"d":"0.00 RSD"},{"v":18750,"d":"18,750.00 RSD"}]
[null,"Projekat 4",{"v":5250,"d":"5,250.00 RSD"},{"v":0,"d":"0.00 RSD"},{"v":0,"d":"0.00 RSD"},{"v":24750,"d":"24,750.00 RSD"},{"v":0,"d":"0.00 RSD"},{"v":5625,"d":"5,625.00 RSD"},{"v":5075,"d":"5,075.00 RSD"},{"v":0,"d":"0.00 RSD"},{"v":0,"d":"0.00 RSD"},{"v":23925,"d":"23,925.00 RSD"},{"v":0,"d":"0.00 RSD"},{"v":5437.5,"d":"5,437.50 RSD"}]
[null,"Projekat 5",{"v":17500,"d":"17,500.00 RSD"},{"v":6250,"d":"6,250.00 RSD"},{"v":30000,"d":"30,000.00 RSD"},{"v":0,"d":"0.00 RSD"},{"v":0,"d":"0.00 RSD"},{"v":9375,"d":"9,375.00 RSD"},{"v":17850,"d":"17,850.00 RSD"},{"v":6375,"d":"6,375.00 RSD"},{"v":30600,"d":"30,600.00 RSD"},{"v":0,"d":"0.00 RSD"},{"v":0,"d":"0.00 RSD"},{"v":9562.5,"d":"9,562.50 RSD"}]
[null,"Konačni zbir",{"v":78750,"d":"78,750.00 RSD"},{"v":66250,"d":"66,250.00 RSD"},{"v":105000,"d":"105,000.00 RSD"},{"v":35750,"d":"35,750.00 RSD"},{"v":0,"d":"0.00 RSD"},{"v":66250,"d":"66,250.00 RSD"},{"v":79275,"d":"79,275.00 RSD"},{"v":67375,"d":"67,375.00 RSD"},{"v":105600,"d":"105,600.00 RSD"},{"v":34650,"d":"34,650.00 RSD"},{"v":0,"d":"0.00 RSD"},{"v":67000,"d":"67,000.00 RSD"}]